bitfinex/quotes_BTCUSD_20251116
["timestamp","ask_amount","ask_price","bid_price","bid_amount"]
[1763285053776,0.12418019,96079.0,96078.0,0.002]
[1763285054008,0.33234222,96079.0,96078.0,0.002]
[1763285054218,0.12418019,96079.0,96078.0,0.002]
[1763285054422,0.33234222,96079.0,96078.0,0.002]
[1763285054653,0.12418019,96079.0,96078.0,0.002]
[1763285054887,0.33234222,96079.0,96078.0,0.002]
[1763285057813,0.20816419,96078.0,96077.0,0.13008194]
[1763285058204,0.12418019,96079.0,96077.0,0.13008194]
[1763285058411,0.12418019,96079.0,96078.0,0.20816419]
[1763285058621,0.12418019,96079.0,96077.0,0.13008194]
[1763285058826,0.12418019,96079.0,96077.0,0.3392481]
[1763285059036,0.20816419,96078.0,96077.0,0.13108194]
[1763285059235,0.20816419,96078.0,96077.0,0.13208194]
[1763285059385,0.33234375,96079.0,96077.0,0.13108194]
[1763285059834,0.20816419,96078.0,96077.0,0.13208194]
[1763285060034,0.20816419,96078.0,96077.0,0.13108194]
[1763285061252,0.20816419,96078.0,96077.0,0.13008194]
[1763285061828,0.20816419,96078.0,96077.0,0.13208194]
[1763285064595,0.33234375,96079.0,96077.0,0.13208194]
[1763285064802,0.20816419,96078.0,96077.0,0.13208194]
[1763285065026,0.20816419,96078.0,96077.0,0.10081783]
[1763285065230,0.20816419,96078.0,96077.0,0.13208194]
[1763285065660,0.20816419,96078.0,96077.0,0.13108194]
[1763285065872,0.20816419,96078.0,96077.0,0.13208194]
[1763285066191,0.33234375,96079.0,96077.0,0.13108194]
[1763285066425,0.20816419,96078.0,96077.0,0.13208194]
[1763285066629,0.20816419,96078.0,96077.0,0.10081783]
[1763285066809,0.20816419,96078.0,96077.0,0.09981783]
[1763285067030,0.20816419,96078.0,96077.0,0.09881783]
[1763285067183,0.20816419,96078.0,96077.0,0.09981783]
[1763285067530,0.20816419,96078.0,96077.0,0.13208194]
[1763285071139,0.20816419,96078.0,96077.0,0.10081783]
[1763285076073,0.17316141,96087.0,96077.0,0.10081783]
[1763285076267,0.20816375,96080.0,96077.0,0.30898412]
[1763285076433,0.24896747,96080.0,96077.0,0.30898412]
[1763285076679,0.20816375,96080.0,96077.0,0.30898412]
[1763285076973,0.20816375,96080.0,96077.0,0.30798412]
[1763285077125,0.20816177,96081.0,96077.0,0.30698412]
[1763285077342,0.2081597,96082.0,96078.0,0.20816385]
[1763285077538,0.20815508,96084.0,96077.0,0.30798412]
[1763285077784,0.2081595,96081.0,96078.0,0.20816419]
[1763285077980,0.20816314,96079.0,96077.0,0.09981783]
[1763285078187,0.20816314,96079.0,96077.0,0.09881783]
[1763285078349,0.20816314,96079.0,96077.0,0.09981783]
[1763285078555,0.24922591,96079.0,96078.0,0.001]
[1763285078775,0.04106277,96079.0,96078.0,0.001]
[1763285079181,0.2492248,96079.0,96078.0,0.001]
[1763285079791,0.20816419,96078.0,96077.0,0.09881783]
[1763285080002,0.20816419,96078.0,96077.0,0.09981783]
[1763285080386,0.20816419,96078.0,96077.0,0.09881783]
[1763285081162,0.20816419,96078.0,96077.0,0.09981783]
[1763285081726,0.20816419,96078.0,96077.0,0.10081783]
[1763285095350,0.20815965,96081.0,96077.0,0.10081783]
[1763285095571,0.20816419,96078.0,96077.0,0.10081783]
[1763285096330,0.20816419,96078.0,96077.0,0.09981783]
[1763285096514,0.20816419,96078.0,96077.0,0.10081783]
[1763285096962,0.24927289,96078.0,96077.0,0.10081783]
[1763285097132,0.24927289,96078.0,96077.0,0.09981783]
[1763285097337,0.24927289,96078.0,96077.0,0.10081783]
[1763285098058,0.0411087,96078.0,96077.0,0.10081783]
[1763285098935,0.0411087,96078.0,96077.0,0.30898419]
[1763285101666,0.0411087,96078.0,96077.0,0.10081783]
[1763285101863,0.0411087,96078.0,96077.0,0.30898419]
[1763285103132,0.0411087,96078.0,96077.0,0.10081783]
[1763285103667,0.24927289,96078.0,96077.0,0.10081783]
[1763285104021,0.0411087,96078.0,96077.0,0.10081783]
[1763285105476,0.0411087,96078.0,96077.0,0.30898419]
[1763285105685,0.24927289,96078.0,96077.0,0.10081783]
[1763285106857,0.0411087,96078.0,96077.0,0.10081783]
[1763285107056,0.24927289,96078.0,96077.0,0.10081783]
[1763285108803,0.0411087,96078.0,96077.0,0.10081783]
[1763285108999,0.0411087,96078.0,96077.0,0.30898419]
[1763285114674,0.0411087,96078.0,96077.0,0.10081783]
[1763285116117,0.0411087,96078.0,96077.0,0.30898419]
[1763285119297,0.0411087,96078.0,96077.0,0.10081783]
[1763285119538,0.24927289,96078.0,96077.0,0.10081783]
[1763285119752,0.0411087,96078.0,96077.0,0.10081783]
[1763285119955,0.0411087,96078.0,96077.0,0.30898419]
[1763285121377,0.0411087,96078.0,96077.0,0.10081783]
[1763285121994,0.0411087,96078.0,96077.0,0.30898419]
[1763285124731,0.0411087,96078.0,96077.0,0.10081783]
[1763285125074,0.24927289,96078.0,96077.0,0.10081783]
[1763285125231,0.0411087,96078.0,96077.0,0.10081783]
[1763285126004,0.24927289,96078.0,96077.0,0.10081783]
[1763285128075,0.0411087,96078.0,96077.0,0.10081783]
[1763285128764,0.0411087,96078.0,96077.0,0.30898419]
[1763285129684,0.0411087,96078.0,96077.0,0.10081783]
[1763285130013,0.24927289,96078.0,96077.0,0.10081783]
[1763285131665,0.24927289,96078.0,96077.0,0.13208256]
[1763285134748,0.26460289,96078.0,96077.0,0.002]
[1763285134968,0.31542042,96078.0,96077.0,0.002]
[1763285135188,0.3154222,96078.0,96077.0,0.002]
[1763285135610,0.3154222,96078.0,96077.0,0.001]
[1763285136761,0.20818153,96070.0,96069.0,0.1]
[1763285137026,0.22351153,96070.0,96069.0,0.1]
[1763285137498,0.25478187,96070.0,96069.0,0.1]
[1763285138063,0.25478187,96070.0,96069.0,0.102]
[1763285148243,0.04660034,96070.0,96069.0,0.102]
[1763285148451,0.23945187,96070.0,96069.0,0.102]
[1763285151883,0.03127034,96070.0,96069.0,0.102]
[1763285152489,0.23945187,96070.0,96069.0,0.102]
[1763285156567,0.03127034,96070.0,96069.0,0.102]
[1763285156743,0.11463034,96070.0,96069.0,0.102]
[1763285156943,0.32281187,96070.0,96069.0,0.102]
[1763285158769,0.11463034,96070.0,96069.0,0.102]
[1763285159185,0.32281187,96070.0,96069.0,0.102]
[1763285160254,0.33814187,96070.0,96069.0,0.102]
[1763285163200,0.32281187,96070.0,96069.0,0.102]
[1763285171680,0.11463034,96070.0,96069.0,0.3101837]
[1763285171908,0.08336,96070.0,96069.0,0.3101837]
[1763285172344,0.08336,96070.0,96069.0,0.35360244]
[1763285172571,0.16122009,96090.0,96076.0,0.09881783]
[1763285172779,0.16122009,96090.0,96089.0,0.20814036]
[1763285172989,0.03126333,96091.0,96090.0,0.2081382]
[1763285173208,0.08336,96096.0,96083.0,0.03126284]
[1763285173448,0.05079886,96095.0,96083.0,0.03126284]
[1763285173651,0.03126268,96095.0,96094.0,0.09881783]
[1763285173865,0.01952588,96095.0,96094.0,0.09881783]
[1763285174070,0.05078856,96095.0,96094.0,0.09886285]
[1763285174286,0.05078856,96095.0,96094.0,0.30699238]
[1763285174498,0.08336,96096.0,96095.0,0.20812737]
[1763285175252,0.08336,96096.0,96094.0,0.30799238]
[1763285175666,0.08336,96096.0,96094.0,0.09986285]
[1763285175879,0.29148521,96096.0,96094.0,0.09986285]
[1763285176231,0.08336,96096.0,96094.0,0.09886285]
[1763285176436,0.08336,96096.0,96094.0,0.30699172]
[1763285176647,0.08336,96096.0,96095.0,0.001]
[1763285177173,0.08336,96096.0,96094.0,0.09886285]
[1763285177174,0.20812737,96095.0,96094.0,0.09886285]
[1763285177427,0.08336,96096.0,96094.0,0.30799203]
[1763285178160,0.08336,96096.0,96094.0,0.30699203]
[1763285178369,0.08336,96096.0,96095.0,0.03225913]
[1763285179349,0.08336,96096.0,96095.0,0.03125913]
[1763285180620,0.08336,96096.0,96095.0,0.03225913]
[1763285180795,0.08336,96096.0,96095.0,0.03325913]
[1763285181762,0.08336,96096.0,96095.0,0.2413865]
[1763285183869,0.08336,96096.0,96095.0,0.03325913]
[1763285184107,0.2914852,96096.0,96095.0,0.03325913]
[1763285184357,0.08336,96096.0,96095.0,0.03325913]
[1763285184838,0.08336,96096.0,96095.0,0.2413865]
[1763285189431,0.08336,96096.0,96095.0,0.2403865]
[1763285189639,0.08336,96096.0,96095.0,0.2393865]
[1763285189849,0.08336,96096.0,96095.0,0.2413865]
[1763285190077,0.08336,96096.0,96095.0,0.03325913]
[1763285190294,0.08336,96096.0,96095.0,0.26219923]
[1763285190498,0.08336,96096.0,96095.0,0.2413865]
[1763285191795,0.08336,96096.0,96095.0,0.21012737]
[1763285198867,0.16122009,96110.0,96109.0,0.20809705]
[1763285199068,0.20808898,96113.0,96110.0,0.20809343]
[1763285199716,0.20808665,96114.0,96110.0,0.20809343]
[1763285199917,0.20808665,96114.0,96111.0,0.20809188]
[1763285200562,0.20808623,96114.0,96110.0,0.20809343]
[1763285200761,0.20809066,96112.0,96109.0,0.30791477]
[1763285200920,0.20809272,96111.0,96109.0,0.09981783]
[1763285201391,0.20809272,96111.0,96109.0,0.09881783]
[1763285201590,0.20809489,96110.0,96109.0,0.09881783]
[1763285202428,0.20809489,96110.0,96109.0,0.09981783]
[1763285203064,0.23557489,96110.0,96109.0,0.09981783]
[1763285203669,0.23557489,96110.0,96109.0,0.09881783]
[1763285203802,0.22004489,96110.0,96109.0,0.09981783]
[1763285207382,0.23955481,96110.0,96109.0,0.09981783]
[1763285213532,0.23956293,96110.0,96109.0,0.09981783]
[1763285215267,0.22004489,96110.0,96109.0,0.09981783]
[1763285215492,0.23956737,96110.0,96109.0,0.09981783]
[1763285216256,0.22004489,96110.0,96109.0,0.09981783]
[1763285216458,0.23957064,96110.0,96109.0,0.09981783]
[1763285217246,0.22004489,96110.0,96109.0,0.09981783]
[1763285217408,0.23957455,96110.0,96109.0,0.09981783]
[1763285218364,0.23958109,96110.0,96109.0,0.09981783]
[1763285218568,0.22763109,96110.0,96109.0,0.09981783]
[1763285219193,0.20809489,96110.0,96109.0,0.09981783]
[1763285223588,0.29141477,96111.0,96109.0,0.09981783]
[1763285223802,0.08332,96111.0,96109.0,0.09981783]
[1763285224239,0.08332,96111.0,96109.0,0.30791485]
[1763285224451,0.08332,96111.0,96109.0,0.30691485]
[1763285224629,0.08332,96111.0,96109.0,0.30791485]
[1763285225143,0.20809489,96110.0,96109.0,0.09981783]
[1763285225380,0.24825701,96110.0,96109.0,0.09981783]
[1763285226148,0.24825701,96110.0,96109.0,0.09881783]
[1763285226375,0.24825701,96110.0,96109.0,0.09981783]
[1763285226985,0.04016212,96110.0,96109.0,0.09981783]
[1763285227219,0.04016212,96110.0,96109.0,0.32872458]
[1763285227425,0.04016212,96110.0,96109.0,0.30791488]
[1763285227789,0.04016212,96110.0,96109.0,0.30691488]
[1763285228436,0.04016212,96110.0,96109.0,0.30791488]
[1763285229153,0.04016212,96110.0,96109.0,0.30891488]
[1763285230595,0.04016212,96110.0,96109.0,0.35233362]
[1763285231208,0.04016212,96110.0,96109.0,0.35133362]
[1763285231550,0.04016212,96110.0,96109.0,0.35233362]
[1763285231760,0.04016212,96110.0,96109.0,0.35133362]
[1763285232494,0.04016212,96110.0,96109.0,0.35233362]
[1763285232700,0.00125506,96110.0,96109.0,0.7531983]
[1763285232912,0.12082019,96140.0,96121.0,0.04341874]
[1763285233228,0.28198577,96140.0,96139.0,0.09881783]
[1763285233428,0.04034539,96140.0,96139.0,0.09881783]
[1763285233994,0.24837534,96140.0,96139.0,0.09881783]
[1763285235417,0.04034539,96140.0,96139.0,0.30784995]
[1763285236240,0.04034539,96140.0,96139.0,0.35126869]
[1763285237064,0.01386872,96140.0,96139.0,0.67326869]
[1763285237265,0.01386872,96140.0,96139.0,0.67526869]
[1763285237692,0.08332,96163.0,96159.0,0.20798885]
[1763285238014,0.08377023,96163.0,96162.0,0.20798236]
[1763285239342,0.08377023,96163.0,96162.0,0.20898236]
[1763285240499,0.08377023,96163.0,96162.0,0.20998236]
[1763285241220,0.08377023,96163.0,96162.0,0.2534011]
[1763285242127,0.08377023,96163.0,96162.0,0.2524011]
[1763285242311,0.08377023,96163.0,96162.0,0.2534011]
[1763285242913,0.08377023,96163.0,96162.0,0.2524011]
[1763285243119,0.08377023,96163.0,96162.0,0.2534011]
[1763285252547,0.08377023,96163.0,96162.0,0.28463361]
[1763285254599,0.08377023,96163.0,96162.0,0.03323251]
[1763285255007,0.29175043,96163.0,96162.0,0.03323251]
[1763285255209,0.32654459,96163.0,96162.0,0.002]
[1763285255429,0.32654459,96163.0,96160.0,0.146]
[1763285255430,0.20798452,96161.0,96160.0,0.146]
[1763285255630,0.22735868,96161.0,96160.0,0.146]
[1763285256443,0.22735868,96161.0,96159.0,0.09881783]
[1763285256648,0.01937416,96160.0,96159.0,0.09881783]
[1763285258093,0.01937416,96160.0,96159.0,0.09981783]
[1763285258676,0.01937416,96160.0,96159.0,0.10081783]
[1763285258875,0.22736084,96160.0,96159.0,0.09981783]
[1763285259322,0.22736084,96160.0,96159.0,0.10081783]
[1763285262004,0.22736084,96160.0,96159.0,0.09981783]
[1763285263115,0.22736084,96160.0,96159.0,0.09881783]
[1763285263315,0.22736084,96160.0,96159.0,0.09981783]
[1763285265376,0.24278084,96160.0,96159.0,0.09981783]
[1763285266869,0.24278084,96160.0,96159.0,0.001]
[1763285267089,0.26527295,96160.0,96159.0,0.001]
[1763285267317,0.28376733,96160.0,96159.0,0.001]
[1763285267926,0.20802995,96140.0,96139.0,0.09881783]
[1763285268073,0.24282411,96140.0,96139.0,0.09881783]
[1763285269553,0.01937416,96140.0,96139.0,0.09881783]
[1763285269962,0.22740411,96140.0,96139.0,0.09881783]
[1763285270306,0.22740411,96140.0,96139.0,0.09981783]
[1763285272478,0.01937416,96140.0,96139.0,0.35126869]
[1763285272698,0.08328,96162.0,96141.0,0.04341874]
[1763285272919,0.08328,96162.0,96161.0,0.09881783]
[1763285273102,0.10272423,96162.0,96161.0,0.09881783]
[1763285275426,0.10272423,96162.0,96161.0,0.10081783]
[1763285277701,0.10272423,96162.0,96161.0,0.30880235]
[1763285279136,0.08328,96162.0,96161.0,0.30880235]
[1763285284876,0.08328,96162.0,96161.0,0.10081783]
[1763285285091,0.29126236,96162.0,96161.0,0.10081783]
[1763285285310,0.30709236,96162.0,96161.0,0.10081783]
[1763285286173,0.30709236,96162.0,96161.0,0.09981783]
[1763285286402,0.08328,96162.0,96161.0,0.30780235]
[1763285286851,0.08328,96162.0,96161.0,0.30680235]
[1763285287517,0.08328,96162.0,96161.0,0.30780235]
[1763285287730,0.08328,96162.0,96161.0,0.30880235]
[1763285287936,0.08328,96162.0,96161.0,0.30780235]
[1763285288386,0.00045023,96163.0,96162.0,0.20798236]
[1763285289642,0.00045023,96163.0,96162.0,0.20898236]
[1763285290464,0.00045023,96163.0,96162.0,0.20998236]
[1763285294321,0.00045023,96163.0,96162.0,0.20898236]
[1763285294734,0.00045023,96163.0,96162.0,0.20998236]
[1763285294925,0.00045023,96163.0,96162.0,0.20898236]
[1763285295265,0.00045023,96163.0,96162.0,0.20998236]
[1763285299466,0.00045023,96163.0,96162.0,0.77181625]
[1763285299872,0.00045023,96163.0,96162.0,0.80304521]
[1763285302381,0.0002,96180.0,96169.0,0.62380111]
[1763285302582,0.00029361,96170.0,96169.0,0.62380111]
[1763285303159,0.00029361,96170.0,96169.0,0.62796474]
[1763285303779,0.00029361,96170.0,96169.0,0.62896474]
[1763285303956,0.00029361,96170.0,96169.0,0.62996474]
[1763285306345,0.00029361,96170.0,96169.0,0.77596474]
[1763285310973,0.00029361,96170.0,96169.0,0.77496474]
[1763285311199,0.00029361,96170.0,96169.0,0.77596474]
[1763285311425,0.00029361,96170.0,96169.0,0.77796474]
[1763285311629,0.0002,96180.0,96169.0,0.77796474]
[1763285311831,0.0002,96180.0,96179.0,0.67917858]
[1763285312205,0.0002,96180.0,96179.0,0.71040283]
[1763285312821,0.0002,96180.0,96179.0,0.75382157]
[1763285313655,0.0002,96180.0,96179.0,0.75582157]
[1763285313868,0.0002,96200.0,96199.0,0.46523657]
[1763285314042,0.0002936,96200.0,96199.0,0.81913893]
[1763285315279,0.0002936,96200.0,96199.0,0.82013893]
[1763285316043,0.0002936,96200.0,96199.0,0.82113893]
[1763285319070,0.0002936,96200.0,96199.0,0.79438893]
[1763285336943,0.0002936,96200.0,96199.0,0.54306783]
[1763285337197,0.2081938,96200.0,96199.0,0.54306783]
[1763285338047,0.0002936,96200.0,96199.0,0.22006783]
[1763285338458,0.0002936,96200.0,96199.0,0.42797019]
[1763285341556,0.0002936,96200.0,96199.0,0.28197019]
[1763285353967,0.0002936,96200.0,96199.0,0.32538893]
[1763285354171,0.0002936,96200.0,96199.0,0.64838893]
[1763285359247,0.0002936,96200.0,96199.0,0.79438893]
[1763285362391,0.2237638,96200.0,96199.0,0.22006783]
[1763285363258,0.2237638,96200.0,96199.0,0.07406783]
[1763285363911,0.2237638,96200.0,96199.0,0.07306783]
[1763285364316,0.2237638,96200.0,96199.0,0.07206783]
[1763285364545,0.2237638,96200.0,96199.0,0.07306783]
[1763285364934,0.2237638,96200.0,96199.0,0.07206783]
[1763285366023,0.20794343,96180.0,96179.0,0.09881783]
[1763285366246,0.21932343,96180.0,96179.0,0.09881783]
[1763285366508,0.23489343,96180.0,96179.0,0.09881783]
[1763285367134,0.23489343,96180.0,96179.0,0.09981783]
[1763285367363,0.02695,96180.0,96179.0,0.09981783]
[1763285367577,0.01138,96180.0,96179.0,0.09981783]
[1763285367931,0.01138,96180.0,96179.0,0.09881783]
[1763285368333,0.21932343,96180.0,96179.0,0.09981783]
[1763285369945,0.30256343,96180.0,96179.0,0.09981783]
[1763285370155,0.29118343,96180.0,96179.0,0.09981783]
[1763285370567,0.30675343,96180.0,96179.0,0.09981783]
[1763285373613,0.29118343,96180.0,96179.0,0.09981783]
[1763285374811,0.2079313,96186.0,96179.0,0.09981783]
[1763285374812,0.23913871,96198.0,96179.0,0.09981783]
[1763285375018,0.08328,96180.0,96179.0,0.30776343]
[1763285376178,0.08328,96180.0,96179.0,0.30676343]
[1763285376814,0.08328,96180.0,96179.0,0.30776343]
[1763285377186,0.08328,96180.0,96179.0,0.30876343]
[1763285382079,0.08328,96192.0,96191.0,0.20791965]
[1763285382432,0.12084792,96200.0,96199.0,0.20790236]
[1763285382631,0.0835736,96200.0,96199.0,0.20790236]
[1763285382882,0.0835736,96200.0,96199.0,0.30672019]
[1763285384255,0.0835736,96200.0,96199.0,0.09881783]
[1763285384682,0.2914738,96200.0,96199.0,0.09881783]
[1763285384858,0.0835736,96200.0,96199.0,0.09881783]
[1763285385305,0.0835736,96200.0,96199.0,0.30672019]
[1763285386841,0.2914738,96200.0,96199.0,0.09881783]
[1763285386963,0.0835736,96200.0,96199.0,0.09881783]
[1763285387164,0.0835736,96200.0,96199.0,0.30672019]
[1763285393138,0.0835736,96200.0,96199.0,0.09881783]
[1763285393554,0.0835736,96200.0,96199.0,0.30672019]
[1763285396993,0.0835736,96200.0,96199.0,0.09881783]
[1763285397210,0.2914738,96200.0,96199.0,0.09881783]
[1763285401402,0.0835736,96200.0,96199.0,0.30672019]
[1763285402258,0.0002936,96200.0,96199.0,0.30672019]
[1763285404222,0.0002936,96200.0,96199.0,0.30772019]
[1763285404838,0.0002936,96200.0,96199.0,0.30872019]
[1763285408641,0.0002936,96200.0,96199.0,0.10081783]
[1763285409083,0.0002936,96200.0,96199.0,0.32951042]
[1763285409342,0.0002936,96200.0,96199.0,0.30872019]
[1763285410870,0.0002936,96200.0,96199.0,0.72455408]
[1763285412930,0.0002936,96200.0,96199.0,0.67513893]
[1763285414763,0.0002936,96200.0,96199.0,0.82113893]
[1763285422312,0.0002936,96200.0,96199.0,0.61323657]
[1763285422537,0.2081938,96200.0,96199.0,0.56981783]
[1763285423183,0.2081938,96200.0,96199.0,0.56781783]
[1763285423406,0.0002936,96200.0,96199.0,0.77672019]
[1763285423613,0.0002936,96200.0,96199.0,0.77772019]
[1763285423819,0.0002936,96200.0,96199.0,0.77672019]
[1763285425930,0.0002936,96200.0,96199.0,0.77772019]
[1763285426606,0.0002936,96200.0,96199.0,0.63172019]
[1763285427347,0.2081938,96200.0,96199.0,0.42381783]
[1763285427728,0.2081938,96200.0,96199.0,0.10081783]
[1763285432792,0.2078938,96200.0,96199.0,0.10081783]
[1763285434726,0.20789822,96201.0,96199.0,0.10081783]
[1763285434906,0.2079002,96200.0,96199.0,0.10081783]
[1763285435486,0.2079002,96200.0,96199.0,0.09981783]
[1763285435927,0.2079002,96200.0,96199.0,0.10081783]
[1763285436344,0.2079002,96200.0,96199.0,0.09981783]
[1763285436769,0.2079002,96200.0,96199.0,0.10081783]
[1763285439694,0.20789822,96201.0,96199.0,0.10081783]
[1763285439900,0.2079002,96200.0,96199.0,0.10081783]
[1763285440898,0.2079002,96200.0,96199.0,0.09981783]
[1763285441099,0.2079002,96200.0,96199.0,0.10081783]
[1763285441726,0.2079002,96200.0,96199.0,0.09981783]
[1763285441926,0.2079002,96200.0,96199.0,0.10081783]
[1763285444273,0.20789552,96203.0,96199.0,0.30871814]
[1763285444479,0.20789634,96202.0,96200.0,0.20789927]
[1763285444715,0.20789898,96201.0,96199.0,0.10081783]
[1763285445209,0.20789588,96202.0,96199.0,0.09981783]
[1763285445410,0.20789847,96201.0,96199.0,0.09881783]
[1763285445632,0.2079002,96200.0,96199.0,0.09881783]
[1763285445850,0.2079002,96200.0,96199.0,0.09981783]
[1763285446271,0.2079002,96200.0,96199.0,0.10081783]
[1763285446713,0.2079002,96200.0,96199.0,0.09981783]
[1763285446896,0.2079002,96200.0,96199.0,0.10081783]
[1763285447105,0.2079002,96200.0,96199.0,0.09981783]
[1763285447361,0.2079002,96200.0,96199.0,0.10081783]
[1763285447791,0.2079002,96200.0,96199.0,0.09981783]
[1763285448147,0.2079002,96200.0,96199.0,0.10081783]
[1763285449121,0.2239002,96200.0,96199.0,0.10081783]
[1763285450146,0.2239002,96200.0,96199.0,0.09881783]
[1763285450348,0.2239002,96200.0,96199.0,0.09981783]
[1763285451951,0.30986294,96200.0,96199.0,0.001]
[1763285452164,0.01039717,96180.0,96150.0,0.09881783]
[1763285452375,0.02805,96151.0,96150.0,0.09926806]
[1763285457926,0.11133,96151.0,96150.0,0.09926806]
[1763285461342,0.09533,96151.0,96150.0,0.09926806]
[1763285461549,0.08328,96151.0,96150.0,0.09926806]
[1763285463609,0.08328,96151.0,96150.0,0.10026806]
[1763285465113,0.08328,96151.0,96150.0,0.63127638]
[1763285465332,0.03124035,96173.0,96151.0,0.323]
[1763285465541,0.03124035,96173.0,96167.0,0.20797053]
[1763285465542,0.24144796,96170.0,96167.0,0.20797053]
[1763285465751,0.08328,96174.0,96151.0,0.323]
[1763285465874,0.08328,96174.0,96169.0,0.20796574]
[1763285466089,0.29123656,96174.0,96169.0,0.20796574]
[1763285466288,0.08328,96174.0,96165.0,0.20797511]
[1763285466500,0.20796554,96170.0,96166.0,0.20797348]
[1763285466700,0.20795967,96173.0,96167.0,0.20797038]
[1763285466926,0.08328,96174.0,96153.0,0.323]
[1763285467134,0.24144796,96170.0,96166.0,0.20797177]
[1763285467301,0.08328,96174.0,96169.0,0.001]
[1763285467511,0.20796506,96170.0,96169.0,0.001]
[1763285468067,0.20795857,96173.0,96169.0,0.001]
[1763285468381,0.2079622,96172.0,96167.0,0.20797059]
[1763285468524,0.2079622,96172.0,96168.0,0.20796881]
[1763285468940,0.20795857,96173.0,96167.0,0.20797059]
[1763285469162,0.20796312,96171.0,96168.0,0.20796839]
[1763285469371,0.29124072,96174.0,96169.0,0.20796692]
[1763285469602,0.08328,96174.0,96172.0,0.20796033]
[1763285470195,0.20796329,96171.0,96169.0,0.001]
[1763285470510,0.20796722,96169.0,96168.0,0.001]
[1763285471668,0.20797371,96166.0,96165.0,0.09881783]
[1763285472053,0.20796339,96171.0,96165.0,0.09881783]
[1763285472260,0.21945008,96173.0,96168.0,0.20796918]
[1763285472436,0.01149,96173.0,96165.0,0.09881783]
[1763285472640,0.01149,96173.0,96172.0,0.20796073]
[1763285473252,0.01149,96173.0,96171.0,0.20796266]
[1763285473455,0.01149,96173.0,96170.0,0.2079642]
[1763285473640,0.01149,96173.0,96171.0,0.20796289]
[1763285473879,0.08328,96174.0,96172.0,0.20896073]
[1763285474192,0.08328,96174.0,96171.0,0.20796289]
[1763285474590,0.08328,96174.0,96170.0,0.001]
[1763285474795,0.08328,96174.0,96171.0,0.20796082]
[1763285474997,0.08328,96174.0,96172.0,0.001]
[1763285475200,0.20795857,96173.0,96172.0,0.001]
[1763285475374,0.29123787,96174.0,96170.0,0.20796099]
[1763285475583,0.20795934,96173.0,96170.0,0.20796099]
[1763285475941,0.20795934,96173.0,96170.0,0.20896099]
[1763285476344,0.29123787,96174.0,96170.0,0.20896099]
[1763285476559,0.20795871,96173.0,96170.0,0.20796099]
[1763285476711,0.20796289,96171.0,96170.0,0.001]
[1763285476913,0.20796289,96171.0,96170.0,0.002]
[1763285477120,0.20796289,96173.0,96170.0,0.001]
[1763285477325,0.20796261,96172.0,96170.0,0.001]
[1763285477952,0.20796261,96172.0,96169.0,0.20796655]
[1763285478156,0.08328,96174.0,96169.0,0.20796655]
[1763285478354,0.08328,96174.0,96170.0,0.002]
[1763285478569,0.20796121,96172.0,96170.0,0.20996326]
[1763285478777,0.20796031,96173.0,96170.0,0.20896326]
[1763285479135,0.20795857,96173.0,96170.0,0.20896496]
[1763285479337,0.20796079,96172.0,96169.0,0.001]
[1763285479544,0.20796722,96169.0,96165.0,0.09881783]
[1763285479744,0.20796679,96170.0,96167.0,0.20797063]
[1763285479954,0.20796679,96170.0,96167.0,0.20797125]
[1763285480190,0.20796714,96171.0,96167.0,0.20797125]
[1763285480526,0.20796714,96171.0,96168.0,0.20796876]
[1763285480728,0.2079612,96172.0,96168.0,0.20796876]
[1763285480883,0.20796268,96172.0,96167.0,0.20896767]
[1763285481087,0.20796268,96172.0,96167.0,0.20796767]
[1763285481412,0.20796073,96172.0,96169.0,0.20796689]
[1763285481929,0.20796329,96171.0,96168.0,0.20796819]
[1763285482902,0.20796329,96171.0,96169.0,0.001]
[1763285483939,0.08328,96174.0,96165.0,0.09881783]
[1763285484154,0.08328,96174.0,96173.0,0.20795857]
[1763285485982,0.08328,96174.0,96173.0,0.20895857]
[1763285487617,0.08328,96174.0,96173.0,0.20995857]
[1763285488217,0.08328,96174.0,96173.0,0.002]
[1763285488480,0.08328,96174.0,96173.0,0.20995857]
[1763285490607,0.29123641,96174.0,96173.0,0.002]
[1763285491630,0.08328,96174.0,96173.0,0.002]
[1763285491989,0.29123641,96174.0,96173.0,0.002]
[1763285492244,0.08328,96174.0,96173.0,0.002]
[1763285492448,0.08328,96174.0,96173.0,0.20995857]
[1763285494014,0.20795026,96177.0,96174.0,0.20795505]
[1763285495226,0.20795026,96177.0,96174.0,0.20895505]
[1763285496230,0.20795026,96177.0,96174.0,0.20995505]
[1763285496509,0.20795192,96177.0,96174.0,0.20995639]
[1763285496728,0.20795164,96177.0,96174.0,0.20995639]
[1763285497349,0.20795164,96177.0,96175.0,0.20795421]
[1763285497562,0.20794756,96180.0,96176.0,0.20795208]
[1763285497770,0.20794679,96179.0,96176.0,0.20795208]
[1763285497977,0.20794854,96178.0,96175.0,0.207954]
[1763285498181,0.29121919,96182.0,96176.0,0.20795167]
[1763285498389,0.2079456,96180.0,96177.0,0.20794945]
[1763285498599,0.20794992,96177.0,96174.0,0.20895473]
[1763285498803,0.20795269,96176.0,96174.0,0.20895473]
[1763285499006,0.20795269,96176.0,96174.0,0.20795473]
[1763285499237,0.20794992,96177.0,96176.0,0.001]
[1763285499448,0.20795271,96176.0,96174.0,0.20795473]
[1763285499656,0.20795271,96176.0,96175.0,0.001]
[1763285500036,0.20795271,96176.0,96174.0,0.20795473]
[1763285500594,0.20794992,96177.0,96174.0,0.20795473]
[1763285501053,0.20794992,96177.0,96175.0,0.001]
[1763285502001,0.20794992,96177.0,96174.0,0.20895473]
[1763285502210,0.20795425,96175.0,96174.0,0.001]
[1763285502412,0.20795425,96175.0,96174.0,0.002]
[1763285502612,0.20796206,96172.0,96169.0,0.20796666]
[1763285502813,0.20796351,96171.0,96169.0,0.20796666]
[1763285503017,0.20796206,96172.0,96170.0,0.20796464]
[1763285503221,0.20795813,96174.0,96171.0,0.20796289]
[1763285503485,0.20795942,96173.0,96170.0,0.20796466]
[1763285503705,0.20795942,96173.0,96169.0,0.20796666]
[1763285504146,0.20795942,96173.0,96170.0,0.001]
[1763285504503,0.20796141,96172.0,96171.0,0.001]
[1763285505423,0.20796073,96172.0,96171.0,0.001]
[1763285505660,0.20796708,96170.0,96166.0,0.20797342]
[1763285505811,0.20795942,96173.0,96167.0,0.20797129]
[1763285506011,0.20795643,96174.0,96170.0,0.001]
[1763285506219,0.20795425,96175.0,96171.0,0.001]
[1763285506378,0.01194,96179.0,96171.0,0.001]
[1763285506587,0.01194,96179.0,96178.0,0.20794776]
[1763285506793,0.08328,96182.0,96181.0,0.20794127]
[1763285507008,0.08328,96182.0,96181.0,0.3067591]
[1763285507896,0.08328,96182.0,96181.0,0.3068527]
[1763285509146,0.08328,96182.0,96181.0,0.3078527]
[1763285510108,0.08328,96182.0,96181.0,0.3068527]